bitfinex/quotes_SOLUSD_20241122
["timestamp","ask_amount","ask_price","bid_price","bid_amount"]
[1732238405128,22.7696,255.96,255.79,24.22125662]
[1732238405331,0.7326254,255.95,255.79,4.22125662]
[1732238405528,0.7326254,255.95,255.77,3.91]
[1732238406560,0.7326254,255.95,255.73,3.91]
[1732238406724,0.7326254,255.95,255.73,22.93006899]
[1732238406931,21.69335392,255.95,255.75,20.0]
[1732238407142,21.69335392,255.95,255.73,23.91]
[1732238407433,0.7326254,255.95,255.73,23.91]
[1732238408247,0.7326254,255.95,255.74,23.776884]
[1732238408550,0.7326254,255.95,255.75,20.0]
[1732238408752,0.7326254,255.95,255.77,20.0]
[1732238409955,20.96072852,255.93,255.77,20.0]
[1732238410155,0.73288837,255.92,255.77,20.0]
[1732238410335,0.73288837,255.92,255.79,23.91]
[1732238410532,22.7696,255.96,255.85,20.0]
[1732238410735,22.7696,255.96,255.87,20.0]
[1732238410942,0.73262595,255.95,255.87,20.0]
[1732238411335,0.73262595,255.95,255.82,20.0]
[1732238411743,20.96072852,255.93,255.76,23.776884]
[1732238411966,0.73286629,255.92,255.76,23.776884]
[1732238412852,0.73281379,255.91,255.76,23.776884]
[1732238413060,0.73281086,255.95,255.78,23.776884]
[1732238413241,0.73281086,255.95,255.8,23.776884]
[1732238413440,0.73281086,255.95,255.83,20.0]
[1732238414356,0.73281086,255.95,255.8,4.22125662]
[1732238414357,22.7696,255.96,255.87,20.0]
[1732238414860,0.73255713,256.02,255.91,20.0]
[1732238414861,25.41675713,256.02,255.91,20.0]
[1732238415556,25.41675713,256.02,255.82,20.0]
[1732238415882,25.41675713,256.02,255.86,20.0]
[1732238416068,25.41675713,256.02,255.88,20.0]
[1732238416548,25.41675713,256.02,255.89,23.776884]
[1732238416752,25.41675713,256.02,255.9,20.0]
[1732238417343,0.73255713,256.02,255.9,20.0]
[1732238417534,0.73245859,256.06,255.9,20.0]
[1732238417740,0.73245859,256.06,255.83,20.42451867]
[1732238417940,0.73245859,256.06,255.86,23.776884]
[1732238418167,0.73245859,256.06,255.88,23.776884]
[1732238418465,0.73245859,256.06,255.89,20.0]
[1732238418759,0.73245859,256.06,255.91,20.0]
[1732238419133,0.73245859,256.06,255.9,23.776884]
[1732238419341,0.73245859,256.06,255.89,20.0]
[1732238419961,0.73245859,256.06,255.93,20.0]
[1732238420167,0.7323285,256.07,255.93,20.0]
[1732238420347,0.7323285,256.07,255.94,23.776884]
[1732238420541,24.6842,256.08,255.97,20.0]
[1732238420743,24.6842,256.08,255.99,20.0]
[1732238421069,24.6842,256.14,256.03,20.0]
[1732238421259,0.73207854,256.13,256.03,20.0]
[1732238422566,24.6842,256.14,256.05,20.0]
[1732238425343,24.6842,256.14,256.07,20.0]
[1732238425944,24.6842,256.14,256.01,20.42318275]
[1732238426143,24.6842,256.14,256.05,20.0]
[1732238428657,0.73205981,256.18,256.06,23.776884]
[1732238429042,0.73205981,256.18,256.07,20.0]
[1732238429243,23.0235,256.2,256.1,23.776884]
[1732238429443,23.0235,256.2,256.09,20.0]
[1732238429444,0.73187524,256.25,256.13,20.0]
[1732238429656,23.0235,256.26,256.15,20.0]
[1732238429657,23.75527989,256.26,256.15,20.0]
[1732238429849,0.7318102,256.25,256.15,20.0]
[1732238430763,0.7318102,256.25,256.08,20.0]
[1732238431069,0.7318102,256.25,256.11,23.776884]
[1732238431248,15.41221121,256.24,256.12,20.0]
[1732238431445,15.41221121,256.22,256.12,20.0]
[1732238431645,15.41221121,256.2,256.03,24.42517986]
[1732238431850,0.73206817,256.19,256.03,6.47312601]
[1732238432047,0.73206817,256.19,256.02,24.42517986]
[1732238432247,0.73206817,256.19,256.01,24.84822961]
[1732238432447,0.73206817,256.19,256.01,24.42517986]
[1732238432674,0.73206817,256.19,256.02,0.42314791]
[1732238432880,0.73196057,256.25,256.03,0.42291878]
[1732238433177,0.73196057,256.25,256.05,20.0]
[1732238433353,0.73196057,256.25,256.06,4.22125662]
[1732238433552,23.0235,256.26,256.11,23.776884]
[1732238433750,0.73170358,256.29,256.15,23.776884]
[1732238433948,24.67348047,256.38,256.18,20.0]
[1732238434154,0.73160322,256.37,256.22,20.0]
[1732238435072,24.67348047,256.36,256.22,20.0]
[1732238435279,24.67348047,256.32,256.12,23.776884]
[1732238435451,0.7317065,256.31,256.15,20.0]
[1732238435652,0.7317065,256.31,256.17,20.0]
[1732238436479,24.67348047,256.34,256.2,23.776884]
[1732238436766,0.73159449,256.33,256.21,20.0]
[1732238438357,24.67348047,256.32,256.12,20.0]
[1732238438563,0.73170472,256.31,256.14,20.0]
[1732238438868,0.73170472,256.31,256.16,23.91]
[1732238439178,0.73170472,256.31,256.13,23.776884]
[1732238439179,24.67348047,256.28,256.13,23.776884]
[1732238439354,24.67348047,256.24,256.11,4.22125662]
[1732238439557,0.7318906,256.23,256.05,4.22125662]
[1732238439762,0.73184216,256.25,256.06,4.64386042]
[1732238440068,0.73184216,256.25,256.08,3.91]
[1732238440375,23.0235,256.26,256.09,4.22125662]
[1732238440576,23.0235,256.26,256.1,24.1991377]
[1732238440757,0.73171054,256.31,256.13,20.0]
[1732238440956,21.3327,256.32,256.18,23.776884]
[1732238441263,0.73160865,256.31,256.19,20.0]
[1732238441572,21.3327,256.32,256.21,20.0]
[1732238441960,0.73160255,256.31,256.21,20.0]
[1732238442280,21.3327,256.32,256.21,20.0]
[1732238443174,0.73159897,256.31,256.21,20.0]
[1732238443674,25.40507944,256.31,256.14,20.0]
[1732238444573,24.67348047,256.29,256.14,20.0]
[1732238444777,21.3327,256.32,256.11,3.91]
[1732238444778,24.67348047,256.27,256.11,3.91]
[1732238444982,0.73187928,256.26,256.11,3.91]
[1732238445286,0.73187928,256.26,256.08,22.4863]
[1732238445287,0.73187928,256.26,256.09,3.91]
[1732238445780,0.73187928,256.26,256.09,10.41828977]
[1732238445983,0.73187928,256.26,256.12,23.776884]
[1732238446274,21.3327,256.32,256.12,23.776884]
[1732238446275,0.73179255,256.28,256.12,23.776884]
[1732238446456,0.73179255,256.28,256.14,23.776884]
[1732238446654,0.73179255,256.28,256.15,20.0]
[1732238447054,0.73178543,256.27,256.13,20.0]
[1732238447365,0.73178548,256.3,256.15,20.0]
[1732238447966,24.67348047,256.29,256.15,20.0]
[1732238448277,24.67348047,256.27,256.1,23.91]
[1732238448473,0.73186127,256.26,256.11,27.686884]
[1732238448676,0.73186127,256.26,256.13,23.776884]
[1732238448878,0.73186127,256.26,256.14,20.0]
[1732238449173,24.67348047,256.23,256.05,3.91]
[1732238449371,0.73203483,256.22,256.05,10.21649745]
[1732238449576,0.73203483,256.22,256.03,3.91]
[1732238450157,21.3327,256.21,256.03,3.91]
[1732238450369,0.73204037,256.2,256.03,3.91]
[1732238451075,0.73204037,256.2,256.02,29.0056209]
[1732238451277,0.73204037,256.2,256.03,23.776884]
[1732238452180,21.3327,256.21,256.06,23.776884]
[1732238452370,0.73190215,256.2,256.06,23.776884]
[1732238452671,0.73190215,256.2,256.09,20.0]
[1732238455262,21.3327,256.21,256.1,23.776884]
[1732238455451,21.3327,256.21,256.11,20.0]
[1732238456277,17.2537,256.27,256.14,23.776884]
[1732238456479,17.2537,256.27,256.15,20.0]
[1732238456769,0.7317391,256.26,256.15,20.0]
[1732238457172,0.7317391,256.26,256.11,4.68708995]
[1732238457864,0.7317391,256.26,256.05,6.47005617]
[1732238458179,0.7317391,256.26,256.06,24.1999806]
[1732238458388,0.7317391,256.26,256.07,4.68708995]
[1732238458685,0.7317391,256.26,256.08,24.19948986]
[1732238458881,0.7317391,256.26,256.08,0.42260586]
[1732238459089,0.7317391,256.26,256.11,20.0]
[1732238459273,0.7317391,256.26,256.13,20.0]
[1732238460880,0.7317391,256.26,256.1,20.0]
[1732238461180,16.14648149,256.26,256.09,4.68708995]
[1732238462679,0.7317391,256.26,256.09,4.68708995]
[1732238463073,0.7317391,256.26,256.08,20.0]
[1732238463074,0.7317391,256.26,256.08,23.776884]
[1732238463258,0.7317391,256.26,256.09,24.68708995]
[1732238463777,0.7317391,256.26,256.1,3.91]
[1732238465680,24.66958685,256.25,256.05,23.91]
[1732238465880,24.66958685,256.23,256.04,10.24386744]
[1732238466091,0.73204913,256.22,256.04,10.24386744]
[1732238466264,0.73204913,256.22,256.05,4.68708995]
[1732238466976,0.73204913,256.22,256.05,24.68708995]
[1732238467289,24.66958685,256.16,256.03,24.42517986]
[1732238467467,0.7322449,256.15,256.03,24.42517986]
[1732238467669,24.66958685,256.14,256.03,24.42517986]
[1732238467976,41.92328685,256.12,256.0,24.42517986]
[1732238468169,24.66958685,256.1,255.99,24.42517986]
[1732238468363,17.2537,256.12,256.02,24.42517986]
[1732238468578,24.66958685,256.09,255.95,72.91148017]
[1732238468890,17.2537,256.12,255.96,4.61486773]
[1732238468891,0.73247748,256.08,255.96,4.61486773]
[1732238469183,0.73247748,256.08,255.92,28.33517986]
[1732238469488,24.66958685,256.07,255.92,3.91]
[1732238469668,21.1581,256.12,255.92,3.91]
[1732238469669,0.73248495,256.06,255.92,3.91]
[1732238469865,0.73248495,256.06,255.92,23.91]
[1732238470295,0.73248495,256.06,255.94,20.0]
[1732238470479,0.73248495,256.06,255.95,20.0]
[1732238470784,24.66958685,256.03,255.92,24.42517986]
[1732238470979,0.73256996,256.02,255.91,24.42517986]
[1732238471291,0.73256996,256.02,255.9,24.42517986]
[1732238471968,0.73251513,256.01,255.91,20.0]
[1732238472187,0.73251685,256.03,255.9,20.0]
[1732238472384,0.73251685,256.03,255.92,23.91]
[1732238472587,0.73251685,256.03,255.92,20.0]
[1732238473374,18.4361,256.04,255.94,20.0]
[1732238473579,0.73242166,256.09,255.96,20.0]
[1732238474265,18.4361,256.1,255.96,20.0]
[1732238474478,18.4361,256.1,255.97,23.776884]
[1732238474675,18.4361,256.1,255.98,20.0]
[1732238475593,0.73222951,256.09,255.98,20.0]
[1732238477292,0.73224583,256.15,255.99,3.91]
[1732238477491,0.73224583,256.15,256.01,20.0]
[1732238478684,0.73224583,256.15,256.01,24.61486773]
[1732238478880,0.73224583,256.15,256.02,4.61486773]
[1732238479290,18.4901,256.16,256.04,20.0]
[1732238479593,18.4901,256.16,256.04,24.61486773]
[1732238479768,0.73203825,256.15,256.04,4.61486773]
[1732238480173,0.73209011,256.14,256.04,4.61486773]
[1732238480982,18.4901,256.16,256.04,4.61486773]
[1732238481872,18.4901,256.23,256.05,23.776884]
[1732238482200,0.73197164,256.22,256.07,18.2967]
[1732238482400,0.73196987,256.3,256.1,43.776884]
[1732238482604,0.73196987,256.3,256.13,20.0]
[1732238482777,0.73196987,256.3,256.16,23.776884]
[1732238482971,0.73196987,256.3,256.19,20.0]
[1732238483507,0.73164414,256.36,256.23,20.0]
[1732238483798,0.73164414,256.36,256.24,23.776884]
[1732238483974,0.73164414,256.36,256.25,20.0]
[1732238484793,0.73164414,256.36,256.2,4.97597884]
[1732238485678,25.37896601,256.36,256.2,4.97597884]
[1732238486173,24.64732187,256.34,256.2,4.97597884]
[1732238486480,24.64732187,256.32,256.13,4.97597884]
[1732238486670,0.7317916,256.31,256.13,11.47262585]
[1732238486875,0.7317916,256.31,256.14,4.97597884]
[1732238487286,0.73168068,256.35,256.15,4.71803128]
[1732238487496,0.73168068,256.35,256.19,20.0]
[1732238487802,0.73168068,256.35,256.2,4.97597884]
[1732238490283,0.73168068,256.35,256.21,23.776884]
[1732238490484,0.73168068,256.35,256.22,20.0]
[1732238490688,0.73156114,256.37,256.22,20.0]
[1732238491506,24.64766057,256.34,256.2,4.97597884]
[1732238491674,24.64766057,256.32,256.13,20.0]
[1732238491877,0.73178086,256.31,256.13,24.97597884]
[1732238492379,0.73178086,256.31,256.14,4.97597884]
[1732238493195,0.73177849,256.3,256.14,4.97597884]
[1732238494101,0.73177974,256.29,256.14,4.97597884]
[1732238494407,0.73179378,256.32,256.14,4.97597884]
[1732238495479,0.73179378,256.32,256.17,23.776884]
[1732238495800,0.73159665,256.36,256.19,23.776884]
[1732238496006,24.64766057,256.35,256.18,24.97597884]
[1732238496203,18.4901,256.38,256.18,24.97597884]
[1732238496204,0.73171474,256.34,256.2,20.0]
[1732238496384,0.73162929,256.36,256.22,20.0]
[1732238497199,0.73162929,256.36,256.19,23.776884]
[1732238497397,0.73162929,256.36,256.21,23.776884]
[1732238497700,0.73162929,256.36,256.22,20.0]
[1732238498385,24.64766057,256.35,256.18,4.97597884]
[1732238498603,0.73169221,256.34,256.18,4.97597884]
[1732238498801,24.64766057,256.33,256.18,4.97597884]
[1732238498997,0.73167886,256.32,256.18,4.97597884]
[1732238499301,16.0336,256.31,256.18,4.97597884]
[1732238499487,24.64766057,256.24,256.07,42.72187986]
[1732238499695,0.73198409,256.23,256.07,18.2967]
[1732238500010,0.73198409,256.23,256.11,24.42517986]
[1732238500178,0.73195639,256.25,256.11,24.42517986]
[1732238500583,0.73195639,256.25,256.12,24.42517986]
[1732238500798,0.73195639,256.25,256.13,20.0]
[1732238501182,0.73184561,256.27,256.13,44.42517986]
[1732238501511,0.73184561,256.27,256.08,20.0]
[1732238501703,0.73184561,256.27,256.09,28.75286284]
[1732238501903,0.73184561,256.27,256.1,20.0]
[1732238502091,0.73184561,256.27,256.1,24.97597884]
[1732238502412,0.73184561,256.27,256.07,42.72187986]
[1732238502413,0.73184561,256.27,256.12,20.0]
[1732238502986,0.73184561,256.27,256.11,24.97597884]
[1732238503397,0.73184561,256.27,256.11,4.97597884]
[1732238503905,24.64766057,256.26,256.12,20.0]
[1732238504200,0.73200217,256.25,256.12,20.0]
[1732238504400,0.73200217,256.25,256.12,44.42517986]
[1732238504613,24.64766057,256.21,256.12,44.42517986]
[1732238504809,0.73205664,256.2,256.11,24.42517986]
[1732238505103,0.73205664,256.2,256.08,36.36472523]
[1732238505104,0.73205664,256.2,256.08,24.42517986]
[1732238505605,0.73205664,256.2,256.08,29.4011587]
[1732238505925,0.73204334,256.19,256.08,4.97597884]
[1732238506207,0.73202465,256.22,256.08,4.97597884]
[1732238507999,0.73202465,256.22,256.09,23.91]
[1732238508205,0.73202465,256.22,256.09,28.88597884]
[1732238508780,15.8675,256.24,256.13,20.0]
[1732238508980,0.73181676,256.23,256.13,20.0]
[1732238509415,0.73181676,256.23,256.11,20.0]
[1732238510311,0.73181676,256.23,256.06,24.42517986]
[1732238510312,0.73181676,256.23,256.09,20.0]
[1732238510690,15.42370495,256.21,256.06,3.91]
[1732238510885,0.73207969,256.2,256.06,3.91]
[1732238511789,0.73207969,256.2,256.05,3.91]
[1732238512010,0.73207969,256.2,256.05,28.88597884]
[1732238512692,15.42370495,256.19,256.05,28.88597884]
[1732238512997,15.42370495,256.15,255.99,30.93640839]
[1732238513206,15.42370495,256.13,255.98,29.4011587]
[1732238513391,15.42370495,256.11,255.98,4.97597884]
[1732238513601,0.73234055,256.1,255.98,4.97597884]
[1732238514495,0.73234055,256.1,255.94,24.42517986]
[1732238515009,0.73234055,256.1,255.95,29.4011587]
[1732238515196,0.73234055,256.1,255.95,4.97597884]
[1732238516095,0.7322927,256.12,255.96,3.91]
[1732238516419,0.7322927,256.12,255.96,8.88597884]
[1732238516615,0.7322927,256.12,255.97,24.97597884]
[1732238516800,0.73220939,256.15,255.97,4.97597884]
[1732238517110,0.73220939,256.15,255.98,23.91]
[1732238517320,0.73220939,256.15,256.0,23.91]
[1732238517900,0.73220939,256.15,255.99,4.97597884]
[1732238518202,0.73220939,256.15,255.99,24.97597884]
[1732238518592,0.73220939,256.15,255.99,4.97597884]
[1732238518793,15.42370495,256.14,255.99,4.97597884]
[1732238519013,15.42370495,256.1,255.94,24.42517986]
[1732238519319,0.7324494,256.09,255.91,3.91]
[1732238519609,0.7324494,256.09,255.92,8.88597884]
[1732238520311,0.7324494,256.09,255.93,20.0]
[1732238520518,0.7324494,256.09,255.94,4.97597884]
[1732238520814,15.8675,256.08,255.94,4.97597884]
[1732238520990,0.73243479,256.07,255.94,4.97597884]
[1732238523911,15.42370495,256.06,255.92,23.91]
[1732238524112,0.73252912,256.05,255.89,23.91]
[1732238524417,0.73252912,256.05,255.89,28.88597884]
[1732238524818,0.73252912,256.05,255.91,3.91]
[1732238524996,0.73252912,256.05,255.91,23.91]
[1732238525201,0.7324816,256.04,255.93,20.0]
[1732238525394,0.73249215,256.07,255.93,20.0]
[1732238525826,0.73249215,256.07,255.93,24.97597884]
[1732238526123,0.73249215,256.07,255.94,4.97597884]
[1732238526802,0.73249215,256.07,255.94,3.99975955]
[1732238528106,15.8675,256.08,255.95,23.91]
[1732238528107,16.59980352,256.08,255.95,23.91]
[1732238528308,15.8675,256.08,255.95,23.91]
[1732238528503,15.8675,256.08,255.97,23.91]
[1732238528710,15.82068748,256.14,255.97,28.81547412]
[1732238529009,15.82068748,256.14,255.99,23.91]
[1732238529411,15.82068748,256.14,256.01,20.0]
[1732238529599,15.82068748,256.14,256.02,3.91]
[1732238529915,15.82068748,256.14,256.01,20.0]
[1732238530118,15.82068748,256.14,255.98,20.0]
[1732238530718,15.82068748,256.14,255.98,23.91]
[1732238531125,15.82068748,256.14,255.94,23.91]
[1732238531635,15.82068748,256.14,255.96,23.91]
[1732238531917,15.42370495,256.13,255.96,23.91]
[1732238532127,0.73234153,256.12,255.96,23.91]
[1732238532504,0.73234153,256.12,255.95,4.90547412]
[1732238532505,15.42370495,256.11,255.95,4.90547412]
[1732238532704,0.7324162,256.1,255.95,4.90547412]
[1732238533025,15.42370495,256.08,255.95,4.90547412]
[1732238533225,0.73247814,256.07,255.95,4.90547412]
[1732238533523,31.14530495,256.06,255.92,3.91]
[1732238533820,0.73253034,256.05,255.88,15.22964778]
[1732238534005,0.73253034,256.05,255.88,8.81547412]
[1732238534823,0.73253034,256.05,255.89,20.0]
[1732238535121,0.73253034,256.05,255.89,24.90547412]
[1732238536232,0.73253034,256.05,255.9,4.90547412]
[1732238536727,0.73253034,256.05,255.91,23.91]
[1732238536928,15.7216,256.06,255.93,20.0]
[1732238537126,15.7216,256.06,255.94,4.90547412]
[1732238537519,15.7216,256.06,255.95,3.91]
[1732238537710,15.7216,256.06,255.95,28.81547412]
[1732238539216,15.7216,256.06,255.92,23.776884]
[1732238539217,0.73230554,256.05,255.93,20.0]
[1732238540232,0.73230554,256.05,255.9,23.91]
[1732238540433,0.73230554,256.05,255.9,8.81547412]
[1732238540611,0.73230554,256.05,255.92,3.91]
[1732238541535,0.73230554,256.05,255.87,10.602166]
[1732238541536,16.15601049,256.05,255.88,23.91]
[1732238541709,15.42370495,256.03,255.88,23.91]
[1732238542028,0.73261786,256.02,255.88,23.91]
[1732238542334,15.42370495,255.98,255.87,4.1591199]
[1732238542514,15.7216,255.95,255.76,19.8867199]
[1732238542711,0.73278632,255.94,255.79,4.63825189]
[1732238543323,0.73278632,255.94,255.8,3.91]
[1732238543526,0.73278632,255.94,255.82,3.91]
[1732238543736,15.7216,255.95,255.84,3.91]
[1732238544231,0.73261449,255.94,255.84,4.63825189]
[1732238544422,15.7216,255.95,255.85,23.91]
[1732238545038,16.1053,256.01,255.87,20.0]
[1732238545215,16.1053,256.01,255.89,20.0]
[1732238545410,16.1053,256.09,255.92,3.91]
[1732238545613,0.73232626,256.08,255.94,3.91]
[1732238546240,0.73232626,256.08,255.94,23.91]
[1732238546631,0.73232626,256.08,255.94,20.0]
[1732238546814,0.73232626,256.08,255.93,4.63825189]
[1732238547317,0.73232626,256.08,255.9,30.78979409]
[1732238547524,0.73232626,256.08,255.93,20.0]
[1732238547915,0.73232626,256.08,255.93,24.63825189]
[1732238548117,25.43277722,256.14,255.93,24.63825189]
[1732238548448,25.43277722,256.14,255.95,20.0]
[1732238548813,0.73230959,256.14,255.95,24.63825189]
[1732238549437,25.43277722,256.14,255.95,24.63825189]
[1732238550722,25.43277722,256.14,255.95,4.63825189]
[1732238550918,0.73230959,256.14,255.95,4.63825189]
[1732238552020,16.0798,256.15,255.95,4.63825189]
[1732238552021,16.81202741,256.15,256.01,20.0]
[1732238552322,16.0798,256.15,256.01,4.63825189]
[1732238552516,16.0798,256.15,256.01,24.63825189]
[1732238552744,16.0798,256.15,256.01,4.63825189]
[1732238553527,16.0798,256.15,256.03,20.0]
[1732238554624,0.73208807,256.21,256.03,20.0]
[1732238554934,0.73208807,256.21,256.03,24.63825189]
[1732238556245,0.73208807,256.21,256.04,4.63825189]
[1732238557926,24.70046763,256.19,255.98,24.1591199]
[1732238558230,0.73215456,256.18,255.98,28.79737179]
[1732238558636,24.70046763,256.17,255.98,28.79737179]
[1732238558940,0.73225387,256.16,255.98,28.79737179]
[1732238559125,24.70046763,256.15,255.98,28.79737179]
[1732238559325,0.73227701,256.14,255.98,28.79737179]
[1732238559517,16.0798,256.13,255.98,28.79737179]
[1732238559720,0.7322707,256.12,255.98,28.79737179]
[1732238560334,0.7322707,256.12,255.99,4.63825189]
[1732238560624,0.7322707,256.12,255.99,24.63825189]
[1732238560934,16.0798,256.13,256.01,20.0]
[1732238561136,16.0798,256.13,256.02,4.63825189]
[1732238561446,16.0798,256.13,256.04,20.0]
[1732238561643,16.0798,256.13,256.06,20.0]
[1732238564336,16.0798,256.13,256.02,24.63825189]
[1732238564534,16.0798,256.13,256.02,4.63825189]
[1732238564836,0.73212529,256.12,256.02,4.63825189]
[1732238565046,0.73212529,256.12,255.99,24.42517986]
[1732238565239,0.73212529,256.12,255.97,24.42517986]
[1732238566430,0.73212529,256.12,255.98,20.0]
[1732238567247,0.73212529,256.12,255.98,24.63825189]
[1732238567551,0.73212529,256.12,256.0,20.0]
[1732238567742,0.73212529,256.12,256.0,24.63825189]
[1732238568047,16.0798,256.13,256.03,20.0]
[1732238568238,16.0798,256.13,256.03,24.63825189]
[1732238568648,16.0798,256.13,256.04,3.91]
[1732238568850,16.0798,256.13,256.03,4.63825189]
[1732238569147,16.4429,256.19,256.05,20.0]
[1732238569453,0.73202502,256.18,256.05,20.0]
[1732238569635,16.4429,256.19,256.09,20.0]
[1732238570850,0.73194861,256.18,256.05,4.63825189]
[1732238571042,0.73194861,256.18,256.07,20.0]
[1732238572141,0.73194861,256.18,256.06,23.776884]
[1732238572142,16.15456439,256.18,255.98,24.42517986]
[1732238572445,15.42261578,256.16,255.97,24.42517986]
[1732238572642,0.7322822,256.15,255.96,29.06343175]
[1732238573239,0.7322822,256.15,255.96,4.63825189]
[1732238573473,15.42261578,256.14,255.96,4.63825189]
[1732238573650,0.7323437,256.13,255.96,4.63825189]
[1732238573832,16.4429,256.11,255.96,4.63825189]
[1732238574043,0.73240732,256.1,255.94,4.63825189]
[1732238576037,0.73240732,256.1,255.94,24.63825189]
[1732238576741,0.73240732,256.1,255.96,20.0]
[1732238576956,0.73240732,256.1,255.97,28.41513589]
[1732238577258,0.73240732,256.1,255.98,20.0]
[1732238577935,0.73240732,256.1,255.98,24.63825189]
[1732238579055,16.4429,256.11,256.0,20.0]
[1732238580045,16.4429,256.11,256.02,20.0]
[1732238580547,16.1484129,256.17,256.04,20.0]
[1732238582255,16.1484129,256.17,256.05,23.776884]
[1732238582462,15.4162,256.17,256.06,20.0]
[1732238582661,15.4162,256.17,256.06,24.63825189]
[1732238583158,15.4162,256.17,256.09,23.776884]
[1732238583358,0.73202227,256.16,256.1,20.0]
[1732238583534,0.73202227,256.16,256.02,3.91]
[1732238583535,0.73202227,256.16,256.01,20.0]
[1732238583939,0.73202227,256.16,256.01,24.63825189]
[1732238584243,0.73202227,256.16,256.02,24.63825189]
[1732238584859,0.73202227,256.16,256.02,4.63825189]
[1732238585365,0.73202227,256.16,256.04,20.0]
[1732238587240,0.73202227,256.16,256.05,23.776884]
[1732238587555,0.73202227,256.16,256.08,20.0]
[1732238591753,0.7320785,256.16,256.08,20.0]
[1732238591958,15.4162,256.17,256.1,20.0]
[1732238592752,0.73202921,256.16,256.1,20.0]
[1732238593469,0.73202921,256.16,256.01,20.0]
[1732238593661,0.73202921,256.16,256.05,20.0]
[1732238594670,0.73202921,256.16,256.01,4.63825189]
[1732238598965,0.73202921,256.16,256.01,23.776884]
[1732238599271,0.73202921,256.16,256.0,24.42517986]
[1732238599272,15.42963978,256.1,256.0,24.42517986]
[1732238599571,15.42963978,256.06,255.91,29.38313297]
[1732238599769,15.42963978,256.04,255.91,24.42517986]
[1732238599948,0.73263922,256.03,255.91,24.42517986]
[1732238600148,151.72963978,256.02,255.91,24.42517986]
[1732238600372,16.0619,256.0,255.87,24.42517986]
[1732238600682,137.03277208,255.99,255.85,24.42517986]
[1732238600973,137.03277208,255.99,255.78,48.48630031]
[1732238600974,136.3,255.99,255.84,24.42517986]
[1732238601165,15.42963978,255.98,255.83,24.42517986]
[1732238601371,0.73282029,255.97,255.81,24.42517986]
[1732238601572,0.73282029,255.97,255.83,24.42517986]
[1732238601573,136.3,255.96,255.83,24.42517986]
[1732238601754,0.73278303,255.95,255.82,24.42517986]
[1732238601951,0.73278303,255.95,255.83,20.0]
[1732238602271,136.3,255.96,255.83,20.0]
[1732238602272,136.3,255.96,255.85,20.0]
[1732238602447,16.0619,256.0,255.87,20.0]
[1732238602648,0.7325417,255.99,255.88,23.776884]
[1732238602866,16.0619,256.0,255.9,23.776884]
[1732238603050,16.0619,256.0,255.93,20.0]
[1732238603250,16.79444466,256.06,255.93,20.0]
[1732238604164,16.79444466,256.06,255.95,20.0]
[1732238604366,16.79444466,256.06,255.98,23.776884]
[1732238604552,16.79444466,256.06,255.99,20.0]
[1732238604553,16.0619,256.06,255.99,20.0]
[1732238605155,0.7323051,256.05,255.99,20.0]
[1732238605355,0.7323051,256.05,255.93,20.0]
[1732238605570,0.7323051,256.05,255.94,20.0]
[1732238605749,0.7323051,256.05,255.95,23.776884]
[1732238605950,0.7323051,256.05,255.96,20.0]
[1732238606351,0.7323051,256.05,255.9,20.0]
[1732238606565,0.7323051,256.05,255.92,20.0]
[1732238606770,0.7323051,256.05,255.94,20.0]
[1732238607677,16.79431513,256.06,255.96,20.0]
[1732238608768,0.73239215,256.05,255.96,20.0]
[1732238611367,0.73239215,256.05,255.92,20.0]
[1732238611555,0.73239215,256.05,255.94,20.0]
[1732238612159,0.73239215,256.05,255.95,23.776884]
[1732238612356,0.73239215,256.05,255.96,20.0]
[1732238616672,0.73242652,256.05,255.96,20.0]
[1732238617068,16.0619,256.06,255.98,20.0]
[1732238617265,0.73235223,256.1,256.0,20.0]
[1732238617862,0.73235223,256.1,255.93,20.0]
[1732238618061,0.73235223,256.1,255.95,20.0]
[1732238618266,0.73235223,256.1,255.97,20.0]
[1732238618766,0.73235223,256.1,255.99,20.0]
[1732238619272,0.73231728,256.09,256.01,20.0]
[1732238619470,0.73228197,256.11,256.01,20.0]